bitfinex-derivatives/quotes_ETHF0:USTF0_20220103
["timestamp","ask_amount","ask_price","bid_price","bid_amount"]
[1641191576328,0.88345763,3802.0,3801.5,1.19199293]
[1641191577928,2.00479,3801.9,3801.5,1.19199293]
[1641191578930,0.88345763,3802.0,3801.7,3.30139577]
[1641191579130,3.18477153,3802.3,3801.8,0.097815]
[1641191579431,2.00479,3802.3,3802.0,1.31395858]
[1641191579631,2.00479,3802.3,3802.2,3.30101871]
[1641191579830,2.00479,3802.3,3802.2,5.1849599]
[1641191580032,1.17998153,3802.4,3802.2,5.65528943]
[1641191580633,1.17998153,3802.4,3802.2,5.2827749]
[1641191581033,2.132947,3802.7,3802.2,5.2827749]
[1641191581233,3.18477153,3803.1,3802.2,5.2827749]
[1641191581733,2.00479,3803.1,3802.4,1.18940375]
[1641191585034,2.00479,3803.1,3802.5,0.37248372]
[1641191586236,2.00479,3803.1,3802.4,1.18940375]
[1641191586934,2.00479,3803.1,3802.5,0.3724906]
[1641191587436,2.00479,3803.1,3802.4,1.18940375]
[1641191589339,2.00479,3803.1,3802.5,0.372481]
[1641191589538,2.00479,3803.1,3802.3,3.19419375]
[1641191589838,0.128157,3803.0,3802.3,3.19419375]
[1641191590040,0.128157,3803.0,3802.4,0.37249219]
[1641191590939,0.128157,3803.0,3802.3,2.00479]
[1641191591739,0.128157,3803.0,3802.4,0.37248959]
[1641191593842,0.128157,3803.0,3802.4,1.56189334]
[1641191594241,0.128157,3803.0,3802.4,1.18940375]
[1641191594641,0.128157,3803.0,3802.3,3.19419375]
[1641191596645,0.128157,3803.0,3802.3,2.00479]
[1641191597545,1.17998153,3803.3,3802.3,2.00479]
[1641191597744,1.17998153,3803.3,3802.3,2.78499]
[1641191597944,1.17998153,3803.3,3802.4,0.37248121]
[1641191598347,1.17998153,3803.3,3802.7,2.00479]
[1641191598947,30.965,3803.4,3802.7,2.00479]
[1641191599145,0.128157,3803.3,3802.7,2.00479]
[1641191599345,0.128157,3803.3,3802.4,1.18940375]
[1641191599946,0.88502224,3803.1,3802.4,1.18940375]
[1641191600145,0.88502224,3803.1,3802.3,4.7862558]
[1641191600345,0.88502224,3803.1,3802.7,2.00479]
[1641191601545,0.88502224,3803.2,3802.7,2.00479]
[1641191611059,0.88502224,3803.2,3802.7,2.77649]
[1641191611856,31.85002224,3803.4,3802.7,2.77649]
[1641191612558,0.88502224,3803.3,3802.7,2.77649]
[1641191613761,31.85002224,3803.4,3802.7,2.77649]
[1641191614059,0.88502224,3803.4,3802.7,2.77649]
[1641191614260,0.88502224,3803.4,3802.7,4.09022072]
[1641191615062,1.01317924,3803.4,3802.7,4.09022072]
[1641191615262,0.88502224,3803.4,3802.7,4.09022072]
[1641191616061,2.88981224,3803.6,3802.7,4.09022072]
[1641191616265,2.88981224,3803.6,3802.7,5.27962447]
[1641191616864,2.00479,3803.6,3802.7,4.09022072]
[1641191621473,2.88981224,3803.6,3802.7,4.09022072]
[1641191621672,0.88502224,3803.6,3802.7,2.08543072]
[1641191621971,0.88502224,3803.6,3802.7,1.31373072]
[1641191622971,2.88981224,3803.6,3802.7,3.31852072]
[1641191623974,2.88981224,3803.6,3803.0,5.25895701]
[1641191624373,2.00479,3803.6,3803.0,5.25895701]
[1641191624573,2.00479,3803.6,3803.1,0.128157]
[1641191628877,0.128157,3803.5,3802.7,3.31852072]
[1641191629477,0.128157,3803.5,3802.7,2.00479]
[1641191630777,1.01317924,3803.5,3802.7,2.00479]
[1641191633583,0.88502224,3803.0,3802.7,3.19419375]
[1641191633784,0.331141,3802.9,3802.7,1.18940375]
[1641191633985,1.4999,3802.8,3802.3,2.00479]
[1641191634184,0.128157,3802.7,3802.3,2.00479]
[1641191634784,1.628057,3802.7,3802.3,2.00479]
[1641191635083,1.628057,3802.7,3802.3,0.68979]
[1641191635285,0.128157,3802.7,3802.3,0.68979]
[1641191636486,0.55869009,3802.6,3802.3,0.68979]
[1641191636687,0.208785,3802.5,3802.3,0.68979]
[1641191637686,0.55869009,3802.4,3802.3,0.68979]
[1641191638688,0.55869009,3802.4,3801.4,0.3994]
[1641191638889,0.55869009,3802.4,3801.3,3.48821084]
[1641191639089,0.55869009,3802.4,3802.0,2.00479]
[1641191639291,0.55869009,3802.4,3802.0,0.68979]
[1641191639889,0.88570984,3802.2,3802.0,0.68979]
[1641191640090,0.208785,3802.1,3802.0,0.68979]
[1641191640489,0.88570984,3802.2,3802.0,0.68979]
[1641191640691,0.88570984,3802.2,3802.0,0.787605]
[1641191641497,0.208785,3802.1,3802.0,0.68979]
[1641191642093,0.88570984,3802.2,3802.0,0.68979]
[1641191642494,0.208785,3802.1,3802.0,0.68979]
[1641191644199,0.88570984,3802.3,3802.0,0.787605]
[1641191644403,0.208785,3802.2,3802.0,0.097815]
[1641191644601,0.88570984,3802.4,3801.6,2.00479]
[1641191645102,0.88570984,3802.4,3801.7,0.37258498]
[1641191645302,2.89049984,3802.4,3801.7,0.37258498]
[1641191646803,2.89049984,3802.4,3801.6,3.19356798]
[1641191647303,0.88570984,3802.3,3801.6,3.19356798]
[1641191648507,0.88570984,3802.3,3801.6,1.18877798]
[1641191648708,1.4999,3801.7,3801.0,2.63503599]
[1641191648907,1.4999,3801.3,3800.7,4.48333548]
[1641191649110,0.5571,3801.3,3800.7,2.23229752]
[1641191649309,0.5571,3801.3,3800.7,0.91689752]
[1641191649511,2.00479,3800.8,3800.6,0.91689752]
[1641191649711,0.208785,3800.7,3800.6,0.91689752]
[1641191650911,0.336942,3800.7,3800.3,2.97639669]
[1641191651109,0.128157,3800.7,3800.3,2.97639669]
[1641191651510,0.128157,3800.7,3799.9,5.18718219]
[1641191652410,0.128157,3800.7,3800.0,0.37271847]
[1641191654013,0.128157,3800.7,3800.0,0.50087547]
[1641191654716,0.128157,3800.7,3800.0,0.37271847]
[1641191655416,0.128157,3800.7,3800.0,1.68737837]
[1641191655916,0.128157,3800.7,3800.0,1.3146599]
[1641191659220,0.128157,3800.7,3800.1,1.18667368]
[1641191660323,2.00479,3800.8,3800.4,3.02952557]
[1641191661926,2.00479,3800.8,3800.4,4.21619925]
[1641191662122,2.00479,3800.8,3800.5,1.31448709]
[1641191662324,2.00479,3800.8,3800.6,0.097815]
[1641191664427,2.213575,3800.8,3800.6,0.097815]
[1641191664828,2.00479,3800.8,3800.6,0.097815]
[1641191666229,0.88570984,3802.0,3801.0,0.97596994]
[1641191666428,0.88570984,3802.0,3801.0,1.60016994]
[1641191666829,0.88570984,3802.0,3801.0,3.10016994]
[1641191667832,2.00479,3801.8,3801.0,1.60016994]
[1641191668032,0.128157,3801.7,3801.0,1.72832694]
[1641191668232,0.128157,3801.7,3801.1,1.18667368]
[1641191668634,0.128157,3801.7,3801.3,1.31418651]
[1641191669036,2.00479,3801.8,3801.5,0.90596634]
[1641191669236,2.00479,3801.8,3801.6,0.097815]
[1641191669434,0.208785,3801.7,3801.6,0.097815]
[1641191669634,2.00479,3801.8,3801.5,0.90596634]
[1641191670337,0.128157,3802.0,3801.5,0.90596634]
[1641191671838,0.128157,3802.0,3801.2,1.18667368]
[1641191672039,0.128157,3802.0,3801.3,2.00479]
[1641191677744,0.128157,3802.0,3801.2,1.31424869]
[1641191678344,0.128157,3802.0,3801.3,2.00479]
[1641191680046,2.00479,3802.2,3801.3,2.00479]
[1641191681346,0.128157,3802.1,3801.3,2.00479]
[1641191681547,0.88570984,3801.8,3801.4,1.18667368]
[1641191682351,0.88570984,3802.0,3801.6,1.18667368]
[1641191683649,1.01386684,3802.0,3801.6,1.18667368]
[1641191684253,0.88570984,3801.9,3801.6,1.18667368]
[1641191684452,0.88570984,3801.9,3801.7,0.097815]
[1641191684651,0.88570984,3801.9,3801.5,1.18667368]
[1641191685252,0.88570984,3801.8,3801.4,1.18667368]
[1641191688558,0.88570984,3801.7,3801.3,3.19146368]
[1641191689564,0.88570984,3801.8,3801.4,1.18667368]
[1641191690164,0.88570984,3801.7,3801.3,3.19146368]
[1641191692271,0.55887564,3801.9,3801.4,1.18667368]
[1641191692272,0.88570984,3801.8,3801.4,1.18667368]
[1641191694172,0.88570984,3801.7,3801.3,1.18667368]
[1641191694972,0.88570984,3801.7,3801.4,1.18667368]
[1641191695171,0.88570984,3801.7,3801.5,0.097815]
[1641191695571,0.88570984,3801.8,3801.5,0.097815]
[1641191698876,0.88570984,3801.7,3801.5,0.097815]
[1641191700177,1.09449484,3801.7,3801.5,0.097815]
[1641191700679,0.88570984,3801.7,3801.5,0.097815]
[1641191701380,0.208785,3801.6,3801.5,0.097815]
[1641191701578,0.88570984,3801.7,3801.3,1.31483068]
[1641191703685,1.174428,3801.7,3801.6,1.18667368]
[1641191703880,1.174428,3801.7,3801.6,1.28448868]
[1641191704281,1.174428,3801.7,3801.6,1.18667368]
[1641191704482,1.383213,3801.7,3801.6,1.18667368]
[1641191705182,1.383213,3801.7,3801.5,1.18667368]
[1641191705183,0.208785,3801.7,3801.5,1.18667368]
[1641191705583,1.174428,3801.8,3801.5,1.18667368]
[1641191705982,0.55889402,3801.6,3801.5,1.18667368]
[1641191706582,0.55889402,3801.6,3801.5,1.28448868]
[1641191706782,0.76767902,3801.6,3801.5,1.18667368]
[1641191706982,0.55889402,3801.6,3801.5,1.18667368]
[1641191707181,1.174428,3801.7,3801.5,1.18667368]
[1641191707383,1.174428,3801.8,3801.5,1.18667368]
[1641191707782,1.174428,3801.8,3801.6,0.097815]
[1641191707982,1.383213,3801.8,3801.6,0.097815]
[1641191708182,1.383213,3801.8,3801.5,1.18667368]
[1641191708984,0.55889402,3801.7,3801.6,0.097815]
[1641191709184,0.55889402,3801.7,3801.6,0.883315]
[1641191709583,0.55889402,3801.7,3801.6,0.7855]
[1641191709884,0.76767902,3801.7,3801.6,0.7855]
[1641191710889,0.55889402,3801.7,3801.6,0.883315]
[1641191712090,1.73332202,3801.9,3801.6,0.883315]
[1641191713791,0.208785,3801.8,3801.6,0.883315]
[1641191714191,1.73332202,3801.9,3801.6,0.883315]
[1641191714793,0.208785,3801.8,3801.6,0.7855]
[1641191714993,0.208785,3801.8,3801.2,4.9876446]
[1641191715391,1.73332202,3801.9,3801.2,4.9876446]
[1641191715893,1.73332202,3801.9,3801.3,0.37264404]
[1641191716292,1.47527781,3802.2,3801.3,1.87264404]
[1641191716508,11.29,3804.1,3802.1,1.5]
[1641191716693,3.34644075,3803.3,3802.1,3.34013935]
[1641191716897,2.90844075,3803.3,3802.2,0.78899831]
[1641191717293,4.06718483,3803.6,3803.0,2.00479]
[1641191717496,4.06718483,3803.6,3803.1,0.128157]
[1641191717698,3.60818483,3803.6,3803.1,0.128157]
[1641191717895,3.08238483,3803.6,3803.1,0.128157]
[1641191718095,3.08238483,3803.6,3803.2,0.78879424]
[1641191718395,3.08238483,3803.6,3803.4,1.31348914]
[1641191718595,3.08238483,3803.6,3803.5,0.097815]
[1641191718998,2.00479,3804.3,3803.5,0.097815]
[1641191719398,2.00479,3804.3,3803.5,2.102605]
[1641191720499,0.89080199,3803.6,3803.5,2.102605]
[1641191724003,2.00479,3804.3,3803.5,2.102605]
[1641191724004,0.89080199,3803.7,3803.5,2.102605]
[1641191724908,0.208785,3803.6,3803.5,2.00479]
[1641191725108,0.720285,3803.6,3803.5,2.00479]
[1641191726508,0.720285,3803.6,3803.0,3.79174035]
[1641191726707,0.122356,3803.5,3803.0,1.78695035]
[1641191726907,0.720285,3803.6,3803.0,1.78695035]
[1641191726908,0.5115,3803.6,3803.0,1.78695035]
[1641191727105,0.5115,3803.6,3803.0,1.91510735]
[1641191727307,0.5115,3803.6,3803.5,0.893534]
[1641191727509,2.725075,3803.6,3803.5,0.893534]
[1641191729107,2.725075,3803.6,3803.2,1.19137866]
[1641191729310,2.725075,3803.6,3803.3,1.19137866]
[1641191730811,2.725075,3803.6,3803.1,0.128157]
[1641191732612,2.51629,3803.6,3803.1,0.128157]
[1641191742533,2.51629,3803.6,3803.2,1.3135478]
[1641191743434,2.644447,3803.6,3803.2,1.3135478]
[1641191744035,2.51629,3803.6,3803.2,1.3135478]
[1641191755950,2.644447,3803.6,3803.2,1.3135478]
[1641191756649,2.51629,3803.6,3803.2,1.3135478]
[1641191766560,2.51629,3803.6,3803.2,3.10049815]
[1641191767963,2.51629,3803.6,3803.4,5.25840131]
[1641191768166,2.725075,3803.6,3803.4,5.25840131]
[1641191768466,2.725075,3803.6,3803.4,5.35621631]
[1641191768665,2.51629,3803.6,3803.4,5.35621631]
[1641191768965,2.51629,3803.6,3803.4,5.25840131]
[1641191769465,2.725075,3803.6,3803.4,5.25840131]
[1641191769664,2.725075,3803.6,3803.3,5.2585145]
[1641191770068,2.725075,3803.6,3803.4,0.097815]
[1641191770069,2.51629,3803.6,3803.4,0.097815]
[1641191774173,0.208785,3803.5,3803.3,5.2585145]
[1641191774375,2.00479,3803.6,3803.4,0.097815]
[1641191774575,2.00479,3803.6,3803.3,5.2585145]
[1641191775173,0.208785,3803.5,3803.3,5.2585145]
[1641191775775,2.00479,3803.6,3803.3,5.2585145]
[1641191775974,2.00479,3803.6,3803.4,0.37248858]
[1641191776675,2.213575,3803.6,3803.4,0.37248858]
[1641191777076,2.00479,3803.6,3803.5,0.097815]
[1641191777275,2.00479,3803.6,3803.4,0.37248858]
[1641191777677,2.213575,3803.6,3803.4,0.37248858]
[1641191777877,2.00479,3803.6,3803.5,0.097815]
[1641191779277,2.00479,3803.6,3803.5,0.816015]
[1641191779879,2.00479,3803.6,3803.5,1.18850358]
[1641191780077,2.213575,3803.6,3803.5,1.09068858]
[1641191780277,2.213575,3803.6,3803.5,1.18850358]
[1641191780278,2.00479,3803.6,3803.5,1.18850358]
[1641191782981,2.213575,3803.6,3803.5,1.09068858]
[1641191783182,2.213575,3803.6,3803.5,1.18850358]
[1641191783382,2.00479,3803.6,3803.5,1.18850358]
[1641191784985,2.213575,3803.6,3803.5,1.09068858]
[1641191785184,2.213575,3803.6,3803.5,1.18850358]
[1641191785386,2.00479,3803.6,3803.5,1.18850358]
[1641191786989,2.00479,3803.6,3803.5,1.09068858]
[1641191787288,2.00479,3803.6,3803.5,1.18850358]
[1641191792192,2.00479,3803.6,3803.5,2.97545393]
[1641191794395,0.128157,3803.9,3803.5,2.97545393]
[1641191794996,2.00479,3803.7,3803.6,0.37248858]
[1641191799104,2.00479,3804.1,3803.6,0.37248858]
[1641191803808,2.00479,3804.1,3803.6,1.13978858]
[1641191804307,2.00479,3804.1,3803.7,0.37248858]
[1641191807313,4.00958,3804.1,3803.5,1.78695035]
[1641191807517,1.4999,3803.8,3803.2,2.23344421]
[1641191807715,0.122356,3803.7,3803.2,2.23344421]
[1641191808513,1.00678105,3803.7,3803.4,1.19016008]
[1641191808713,0.208785,3803.6,3803.4,1.19016008]
[1641191809414,2.00479,3803.5,3803.4,6.008e-05]
[1641191809614,13.29479,3803.5,3803.4,6.008e-05]
[1641191809815,13.853445,3803.5,3803.4,6.008e-05]
[1641191810014,13.853445,3803.5,3803.2,6.008e-05]
[1641191810214,1.836842,3803.4,3803.2,6.008e-05]
[1641191810414,0.336942,3803.4,3803.2,6.008e-05]
[1641191810814,0.336942,3803.4,3802.3,3.54730956]
[1641191811016,0.895597,3803.4,3802.3,1.31386535]
[1641191811516,2.00479,3802.6,3802.1,2.23250956]
[1641191812015,2.00479,3802.6,3802.0,4.18702467]
[1641191812415,0.128157,3802.5,3802.0,4.18702467]
[1641191817421,0.128157,3802.5,3802.3,1.78662665]
[1641191817619,0.128157,3802.5,3802.3,2.55642665]
[1641191817820,0.208785,3802.4,3802.3,2.55642665]
[1641191818020,0.128157,3802.5,3802.3,2.55642665]
[1641191818221,0.128157,3802.5,3802.4,0.37253278]
[1641191818620,0.128157,3802.5,3802.3,2.55642665]
[1641191819022,0.128157,3802.5,3802.4,0.097815]
[1641191819223,0.336942,3802.5,3802.3,1.78662665]
[1641191819522,0.128157,3802.5,3802.3,1.78662665]
[1641191820227,0.128157,3802.5,3802.3,1.88444165]
[1641191820429,0.128157,3802.5,3802.4,1.78662665]
[1641191820730,0.336942,3802.5,3802.4,1.78662665]
[1641191821331,0.128157,3802.5,3802.4,1.78662665]
[1641191821730,2.00479,3802.6,3802.4,1.78662665]
[1641191822130,2.00479,3802.6,3802.5,0.097815]
[1641191824136,2.00479,3802.6,3802.5,1.88444165]
[1641191827439,2.341732,3802.6,3802.5,1.78662665]
[1641191828342,0.128157,3802.6,3802.4,1.78662665]
[1641191828542,0.128157,3802.6,3802.5,0.097815]
[1641191829342,0.88918828,3803.0,3802.5,0.097815]
[1641191829540,2.00479,3802.6,3802.5,0.097815]
[1641191830843,2.213575,3802.6,3802.5,0.097815]
[1641191831043,2.213575,3802.6,3802.4,1.78662665]
[1641191831543,2.00479,3802.6,3802.4,1.88444165]
[1641191832447,2.00479,3802.6,3802.5,1.78662665]
[1641191833145,2.00479,3802.6,3802.4,1.88444165]
[1641191833344,2.213575,3802.6,3802.4,1.78662665]
[1641191834146,2.213575,3802.6,3802.5,1.18748928]
[1641191835349,2.00479,3802.6,3802.5,1.28530428]
[1641191835649,2.00479,3802.6,3802.5,0.097815]
[1641191838052,2.213575,3802.6,3802.4,1.18748928]
[1641191838253,2.213575,3802.6,3802.4,1.28530428]
[1641191838452,2.213575,3802.6,3802.4,1.18748928]
[1641191838755,2.00479,3802.6,3802.4,1.18748928]
[1641191839155,2.00479,3802.6,3802.5,0.097815]
[1641191839556,2.213575,3802.6,3802.5,0.88958302]
[1641191840656,2.213575,3802.6,3802.5,0.98739802]
[1641191840856,2.00479,3802.6,3802.5,0.097815]
[1641191843360,2.00479,3802.6,3802.4,0.128157]
[1641191843361,2.213575,3802.6,3802.4,0.128157]
[1641191843563,2.00479,3802.6,3802.4,0.128157]
[1641191843762,2.00479,3802.6,3802.3,1.74338928]
[1641191843962,2.00479,3802.6,3802.3,1.18748928]
[1641191844264,0.208785,3802.5,3802.4,1.18748928]
[1641191845063,2.00479,3802.6,3802.4,1.28530428]
[1641191845363,2.00479,3802.6,3802.4,0.097815]
[1641191846964,2.00479,3802.6,3802.4,1.28530428]
[1641191847864,0.208785,3802.5,3802.4,1.18748928]
[1641191848065,2.00479,3802.6,3802.4,1.28530428]
[1641191849566,2.213575,3802.6,3802.4,1.18748928]
[1641191849767,2.00479,3802.6,3802.5,0.097815]
[1641191850468,2.213575,3802.6,3802.3,1.18748928]
[1641191851667,2.213575,3802.6,3802.4,0.097815]
[1641191852268,2.213575,3802.6,3802.3,1.18748928]
[1641191852668,2.213575,3802.6,3802.4,0.097815]
[1641191852968,2.213575,3802.6,3802.3,1.18748928]
[1641191853469,2.213575,3802.6,3802.4,0.097815]
[1641191854669,2.00479,3802.6,3802.4,0.097815]
[1641191855073,2.00479,3802.6,3802.4,0.47034969]
[1641191855374,0.208785,3802.5,3802.4,0.37253469]
[1641191855670,2.00479,3802.6,3802.4,1.65783897]
[1641191856069,2.00479,3802.6,3802.4,1.28530428]
[1641191856770,0.128157,3803.1,3802.4,1.28530428]
[1641191857371,0.128157,3803.1,3802.9,0.89053708]
[1641191857772,0.208785,3803.0,3802.9,0.89053708]
[1641191857971,4.218365,3803.0,3802.9,0.89053708]
[1641191858169,4.00958,3803.0,3802.9,0.98835208]
[1641191858370,4.00958,3803.0,3802.9,0.89053708]
[1641191858570,4.00958,3803.0,3802.7,0.89053708]
[1641191858771,0.208785,3802.9,3802.7,0.89053708]
[1641191859772,0.208785,3802.9,3802.8,0.89053708]
[1641191860173,2.213575,3802.9,3802.8,0.89053708]
[1641191863182,2.00479,3802.9,3802.8,0.98835208]
[1641191863480,2.213575,3802.9,3802.8,0.89053708]
[1641191866683,2.213575,3802.9,3802.8,1.26308027]
[1641191867688,2.213575,3802.9,3802.8,0.37254319]
[1641191868288,2.213575,3802.9,3802.5,1.78662665]
[1641191868488,2.213575,3802.9,3802.8,0.37254319]
[1641191868692,2.213575,3802.9,3802.8,0.47035819]
[1641191868891,2.213575,3802.9,3802.6,0.37254319]
[1641191869091,2.00479,3802.9,3802.8,0.37254319]
[1641191869490,2.00479,3802.9,3802.7,0.37254319]
[1641191869694,2.00479,3802.9,3802.8,0.47035819]
[1641191869894,2.89397828,3802.9,3802.8,0.37254319]
[1641191870293,2.89397828,3802.9,3802.5,0.37254319]
[1641191870493,2.89397828,3802.9,3802.8,0.37254319]
[1641191870697,2.89397828,3802.9,3802.6,0.37254319]
[1641191870896,0.208785,3802.8,3802.6,0.37254319]
[1641191871097,0.208785,3802.8,3802.5,1.78662665]
[1641191871897,0.208785,3802.8,3802.4,1.78662665]
[1641191872496,2.00479,3802.9,3802.4,1.78662665]
[1641191872796,2.00479,3802.9,3802.5,1.78662665]
[1641191878002,2.89397828,3802.9,3802.4,1.78662665]
[1641191878409,2.89397828,3802.9,3802.0,1.31416573]
[1641191878410,1.4999,3802.6,3802.0,1.31416573]
[1641191878604,2.127146,3802.5,3801.8,2.97639669]
[1641191878803,1.4999,3802.2,3801.8,2.97639669]
[1641191879003,0.128157,3802.1,3801.8,1.66139669]
[1641191879203,0.208785,3802.0,3801.8,1.66139669]
[1641191880208,1.09797328,3802.0,3801.5,3.72240701]
[1641191880407,1.09797328,3802.0,3801.4,1.31408289]
[1641191880605,2.00479,3801.7,3801.4,1.31408289]
[1641191880810,0.208785,3801.6,3801.4,1.31408289]
[1641191881206,2.00479,3801.7,3801.5,0.097815]
[1641191881807,0.208785,3801.6,3801.4,2.03613989]
[1641191882809,2.00479,3801.7,3801.4,2.13395489]
[1641191883009,2.00479,3801.7,3801.4,1.54005489]
[1641191883510,0.208785,3801.6,3801.4,1.54005489]
[1641191883710,2.00479,3801.7,3801.4,1.54005489]
[1641191883910,2.00479,3801.7,3801.6,1.18793817]
[1641191884213,2.00479,3801.7,3801.6,1.28575317]
[1641191884415,2.00479,3802.5,3801.6,2.01875317]
[1641191884613,2.00479,3802.5,3801.7,2.00479]
[1641191885414,2.00479,3802.5,3802.1,0.89087983]
[1641191885613,0.128157,3802.4,3802.1,0.89087983]
[1641191885813,0.208785,3802.3,3802.1,0.89087983]
[1641191887614,0.208785,3802.3,3802.0,0.89087983]
[1641191888817,0.208785,3802.3,3801.9,0.89087983]
[1641191891521,0.208785,3802.3,3802.0,0.89087983]
[1641191893524,0.208785,3802.3,3801.9,0.89087983]
[1641191894425,0.208785,3802.3,3801.8,0.89087983]
[1641191894625,2.00479,3802.1,3801.8,0.89087983]
[1641191894825,2.00479,3802.1,3801.9,0.097815]
[1641191895025,2.00479,3802.1,3801.8,0.89087983]
[1641191895231,2.00479,3802.1,3801.7,0.89087983]
[1641191895933,2.00479,3802.1,3801.8,0.89087983]
[1641191896135,0.208785,3802.0,3801.8,0.89087983]
[1641191896735,0.208785,3802.0,3801.7,0.89087983]
[1641191897135,0.208785,3802.0,3801.8,0.097815]
[1641191897334,0.208785,3802.0,3801.7,0.89087983]
[1641191897735,0.208785,3802.0,3801.8,0.89087983]
[1641191898135,2.00479,3802.1,3801.9,0.097815]
[1641191899137,0.208785,3802.0,3801.8,0.89087983]
[1641191900137,2.00479,3802.1,3801.9,0.097815]
[1641191900337,0.208785,3802.0,3801.8,0.89087983]
[1641191901736,0.208785,3802.0,3801.7,0.89087983]
[1641191902336,2.00479,3802.1,3801.8,0.097815]
[1641191902537,0.208785,3802.0,3801.8,0.097815]
[1641191902737,0.208785,3802.0,3801.8,0.98869483]
[1641191904041,0.208785,3802.0,3801.8,0.89087983]
[1641191905246,0.208785,3802.0,3801.6,0.89087983]
[1641191905946,0.208785,3802.0,3801.9,0.89087983]
[1641191906144,2.00479,3802.1,3801.9,0.89087983]
[1641191906344,24.02629846,3802.1,3801.9,0.89087983]
[1641191906545,0.208785,3802.0,3801.9,0.89087983]
[1641191906744,0.918441,3802.0,3801.9,0.89087983]
[1641191907344,0.796085,3802.0,3801.9,0.89087983]
[1641191907544,0.796085,3802.0,3801.6,1.18783977]
[1641191908349,0.796085,3802.0,3801.7,0.89088653]
[1641191909046,0.796085,3802.0,3801.8,0.097815]
[1641191909645,0.796085,3802.0,3801.3,3.19262977]
[1641191909846,2.295985,3802.0,3801.3,3.19262977]
[1641191910046,0.796085,3802.0,3801.3,3.19262977]
[1641191910448,0.796085,3802.0,3801.3,2.00479]
[1641191911449,0.796085,3802.0,3801.3,3.19262977]
[1641191912049,0.796085,3802.0,3801.3,2.00479]
[1641191914954,0.796085,3802.0,3801.4,0.128157]
[1641191916364,1.17860922,3802.7,3801.4,1.628157]
[1641191916756,1.17860922,3802.7,3801.7,1.31396376]
[1641191916959,1.17860922,3802.7,3801.7,2.10726376]
[1641191917358,1.17860922,3802.7,3802.1,2.00479]
[1641191917660,1.17860922,3802.5,3802.4,1.18783977]
[1641191917856,1.17860922,3802.5,3802.4,1.28565477]
[1641191918861,1.17860922,3802.5,3802.4,0.097815]
[1641191919058,1.17860922,3802.6,3802.4,0.097815]
[1641191919458,1.38739422,3802.6,3802.2,0.128157]
[1641191919958,1.38739422,3802.6,3802.5,1.19219444]
[1641191920560,1.17860922,3802.6,3802.5,1.29000944]
[1641191920860,1.94632348,3802.6,3802.5,1.19219444]
[1641191921261,3.95111348,3802.6,3802.5,1.19219444]
[1641191923263,3.74232848,3802.6,3802.5,1.29000944]
[1641191923465,3.95111348,3802.6,3802.5,1.19219444]
[1641191923668,1.73753848,3802.6,3802.5,1.19219444]
[1641191924071,0.55892926,3802.6,3802.5,1.19219444]
[1641191924268,2.77250426,3802.6,3802.5,1.19219444]
[1641191924970,3.39857737,3802.6,3802.5,1.19219444]
[1641191925669,3.95750663,3802.6,3802.5,1.19219444]
[1641191927169,3.95750663,3802.6,3801.9,1.78183973]
[1641191927471,2.56371926,3802.6,3802.0,1.90999673]
[1641191928172,0.88881391,3802.4,3802.0,1.90999673]
[1641191928570,0.88881391,3802.4,3802.0,1.78183973]
[1641191929572,0.88881391,3802.4,3802.0,1.90999673]
[1641191929774,0.88881391,3802.7,3802.3,1.19024696]
[1641191931074,0.88881391,3802.7,3802.6,0.89268038]
[1641191931275,1.09759891,3802.7,3802.6,0.89268038]
[1641191933578,1.09759891,3802.7,3802.4,1.19024696]
[1641191934378,0.208785,3802.7,3802.4,1.19024696]
[1641191935784,0.208785,3802.6,3802.4,1.19024696]
[1641191935982,2.89360391,3802.8,3802.4,1.19024696]
[1641191937188,2.89360391,3802.8,3802.7,0.89264212]
[1641191937390,3.10238891,3802.8,3802.7,0.89264212]
[1641191938490,2.89360391,3802.8,3802.7,0.99045712]
[1641191938692,3.10238891,3802.8,3802.7,0.89264212]
[1641191939190,2.89360391,3802.8,3802.7,0.89264212]
[1641191939991,0.88881391,3802.8,3802.7,0.89264212]
[1641191940192,1.09759891,3802.8,3802.7,0.89264212]
[1641191940492,0.88881391,3802.8,3802.7,0.89264212]
[1641191940994,2.89360391,3802.8,3802.7,0.89264212]
[1641191941194,3.10238891,3802.8,3802.7,0.89264212]
[1641191941393,2.89360391,3802.8,3802.7,0.99045712]
[1641191941895,2.89360391,3802.8,3802.7,0.89264212]
[1641191942393,3.10238891,3802.8,3802.6,0.89264212]
[1641191942592,3.10238891,3802.8,3802.6,0.99045712]
[1641191942994,3.10238891,3802.8,3802.6,0.89264212]
[1641191943393,3.10238891,3802.8,3802.5,0.89264212]
[1641191943394,0.88881391,3802.7,3802.5,0.89264212]
[1641191943593,0.88881391,3802.7,3802.5,0.99045712]
[1641191944194,2.89360391,3802.8,3802.6,0.89264212]
[1641191944596,2.89360391,3802.8,3802.7,0.097815]
[1641191945196,2.89360391,3802.8,3802.6,0.89264212]
[1641191945396,3.10238891,3802.8,3802.6,0.89264212]
[1641191947797,2.89360391,3802.8,3802.6,0.99045712]
[1641191947998,1.18500237,3803.1,3802.6,0.99045712]
[1641191948199,1.18500237,3803.1,3802.6,1.71395712]
[1641191948599,1.18500237,3803.1,3802.9,1.47400599]
[1641191948800,1.18500237,3803.1,3803.0,0.225972]
[1641191949201,2.00479,3803.4,3803.0,0.225972]
[1641191950501,2.00479,3803.4,3803.0,0.097815]
[1641191951302,0.55884312,3803.3,3803.0,0.097815]
[1641191951502,0.208785,3803.2,3802.6,1.19024696]
[1641191951703,0.55884312,3803.3,3802.6,1.19024696]
[1641191951904,0.55884312,3803.3,3802.7,0.128157]
[1641191952101,3.18979237,3803.4,3802.7,0.128157]
[1641191952303,2.00479,3803.4,3802.7,0.128157]
[1641191953106,0.55884829,3803.3,3802.7,0.128157]
[1641191953708,0.55884829,3803.3,3802.8,1.30778805]
[1641191953908,0.55884829,3803.3,3802.8,2.10018805]
[1641191954110,0.55884829,3803.3,3802.8,0.7924]
[1641191954606,1.18500237,3803.4,3802.8,0.7924]
[1641191955006,2.00479,3803.7,3802.9,1.19024696]
[1641191955208,2.00479,3803.7,3802.9,3.19503696]
[1641191955906,0.55880708,3803.6,3802.9,3.19503696]
[1641191956108,0.55880708,3803.6,3802.9,2.00479]
[1641191960215,0.55880708,3803.6,3802.9,3.19503696]
[1641191960815,0.55880708,3803.6,3802.9,2.00479]